fUSD/lending_fUSD_20250103
["ID","MTS","AMOUNT","RATE_DAILY","PERIOD"]
[347583029,1735925434220,-500.0,0.00012052,2]
[347583030,1735925434230,-500.0,0.00012052,2]
[347583033,1735925434241,-500.0,0.00012052,2]
[347583034,1735925434251,-535.48,0.00012052,2]
[347583036,1735925434262,-173.1757441,0.00012053,2]
[347583038,1735925434272,-413.1,0.00012053,2]
[347583041,1735925434282,-643.07,0.00012053,2]
[347583042,1735925434292,-552.71,0.00012054,2]
[347583044,1735925434303,-861.54,0.00012054,2]
[347583047,1735925434313,-444.09622201,0.00012072,2]
[347583048,1735925434323,-652.129568,0.00012079,2]
[347583050,1735925434333,-436.974121,0.00012079,2]
[347583052,1735925434344,-171.49003,0.00012079,2]
[347583054,1735925434354,-500.0,0.00012079,2]
[347583056,1735925434364,-500.0,0.00012079,2]
[347583058,1735925434375,-500.0,0.00012079,2]
[347583059,1735925434386,-500.0,0.00012079,2]
[347583060,1735925434396,-500.0,0.00012079,2]
[347583061,1735925434405,-500.0,0.00012079,2]
[347583062,1735925434415,-1152.41,0.00012079,2]
[347583063,1735925434425,-500.0,0.00012079,2]
[347583064,1735925434437,-500.0,0.00012079,2]
[347583065,1735925434446,-500.0,0.00012079,2]
[347583066,1735925434455,-500.0,0.00012079,2]
[347583067,1735925434466,-16090.53156061,0.0001208,2]
[347583068,1735925434476,-500.0,0.00012087,2]
[347583069,1735925434486,-500.0,0.00012087,2]
[347583071,1735925434496,-500.0,0.00012087,2]
[347583073,1735925434506,-500.0,0.00012087,2]
[347583075,1735925434515,-500.0,0.00012087,2]
[347583077,1735925434526,-500.0,0.00012087,2]
[347583079,1735925434536,-500.0,0.00012087,2]
[347583081,1735925434546,-511.05,0.00012087,2]
[347583083,1735925434555,-500.0,0.00012087,2]
[347583085,1735925434565,-539.39,0.00012087,2]
[347583087,1735925434574,-500.0,0.00012087,2]
[347583089,1735925434583,-603.7,0.00012087,2]
[347583091,1735925434594,-514.15,0.00012087,2]
[347583093,1735925434603,-500.0,0.00012087,2]
[347583095,1735925434613,-500.0,0.00012087,2]
[347583097,1735925434623,-523.04,0.00012087,2]
[347583099,1735925434633,-500.0,0.00012087,2]
[347583101,1735925434644,-500.0,0.00012087,2]
[347583103,1735925434653,-500.0,0.00012087,2]
[347583105,1735925434662,-500.0,0.00012088,2]
[347583107,1735925434672,-1200.0,0.00012088,2]
[347583109,1735925434681,-6657.55008556,0.00012099,2]
[347583111,1735925434690,-5000.0,0.000121,2]
[347583113,1735925434700,-444.09622201,0.00012107,2]
[347583115,1735925434709,-150.0,0.00012138,2]
[347583116,1735925434718,-200.0,0.00012138,2]
[347583118,1735925434727,-444.09622201,0.00012141,2]
[347583120,1735925434737,-150.0,0.00012151,2]
[347583122,1735925434746,-150.0,0.00012165,2]
[347583124,1735925434755,-150.0,0.00012174,2]
[347583126,1735925434765,-444.09622201,0.00012176,2]
[347583128,1735925434774,-500.0,0.00012198,2]
[347583130,1735925434784,-500.0,0.00012198,2]
[347583132,1735925434793,-500.0,0.00012198,2]
[347583134,1735925434803,-500.0,0.00012198,2]
[347583136,1735925434812,-557.66,0.00012198,2]
[347583138,1735925434821,-1051.12715408,0.00012199,2]
[347583140,1735925434831,-200.0,0.00012199,2]
[347583142,1735925434843,-200.0,0.00012199,2]
[347583144,1735925434852,-2000.0,0.00012199,2]
[347583146,1735925434861,-200.0,0.00012199,2]
[347583148,1735925434870,-500.0,0.00012199,2]
[347583150,1735925434881,-500.0,0.00012199,2]
[347583152,1735925434890,-500.0,0.00012199,2]
[347583154,1735925434899,-500.0,0.00012199,2]
[347583156,1735925434910,-500.0,0.00012199,2]
[347583158,1735925434920,-500.0,0.00012199,2]
[347583160,1735925434930,-37862.5152676,0.000122,2]
[347583163,1735925434949,-2292.43245301,0.000122,2]
[347583165,1735925434961,-870.13107844,0.000122,2]
[347583196,1735925437703,-3000.0,0.00012199,2]
[347583198,1735925437713,-14529.92120095,0.000122,2]
[347583200,1735925437723,-690.41791394,0.000122,2]
[347583202,1735925437733,-2809.95074131,0.000122,2]
[347583204,1735925437743,-13838.79216625,0.000122,2]
[347583209,1735925437781,-412.21829405,0.000122,2]
[347583217,1735925437858,-659.93001883,0.000122,2]
[347583222,1735925437940,-1539.84736821,0.000122,2]
[347583223,1735925438020,-3437.55574747,0.000122,2]
[347583224,1735925438029,-583.07298672,0.000122,2]
[347583225,1735925438039,-500.0,0.000122,2]
[347583226,1735925438048,-500.0,0.000122,2]
[347583227,1735925438058,-500.0,0.000122,2]
[347583228,1735925438067,-500.0,0.000122,2]
[347583229,1735925438076,-459.71224955,0.000122,2]
[347583230,1735925438086,-1244.35063031,0.000122,2]
[347583286,1735925439814,-500.0,0.00010956,2]
[347583287,1735925439957,-500.0,0.0001123,2]
[347583288,1735925439967,-1073.02499998,0.00012087,2]
[347583289,1735925439979,-31.37500002,0.00012087,2]
[347583290,1735925439989,-48.49833231,0.000122,2]
[347583291,1735925439998,-611.41763699,0.000122,2]
[347583292,1735925440008,-209.51004241,0.000122,2]
[347583293,1735925440018,-500.0,0.000122,2]
[347583294,1735925440027,-500.0,0.000122,2]
[347583295,1735925440037,-500.0,0.000122,2]
[347583296,1735925440046,-809.32,0.000122,2]
[347583297,1735925440056,-3846.45498827,0.000122,2]
[347583298,1735925440071,-1137.7153778,0.000122,2]
[347583299,1735925440083,-2414.43811891,0.000122,2]
[347583300,1735925440094,-327.68500001,0.000122,2]
[347583301,1735925440108,-308.67211035,0.000122,2]
[347583302,1735925440179,-1642.99594317,0.000122,2]
[347583304,1735925440189,-500.0,0.000122,2]
[347583306,1735925440199,-632.94406448,0.000122,2]
[347583309,1735925440210,-19255.39953026,0.000122,2]
[347583311,1735925440220,-19888.34359474,0.000122,2]
[347583313,1735925440230,-4109.2023393,0.000122,2]
[347583375,1735925442930,-500.0,0.00010957,2]
[347583377,1735925442940,-186.0,0.00010957,2]
[347583395,1735925443069,-74.14471507,0.00010957,2]
[347583397,1735925443078,-564.49,0.00011231,2]
[347583399,1735925443088,-156.33376159,0.00011279,2]
[347583401,1735925443099,-104.79623841,0.00011279,2]
[347583403,1735925443110,-186.26593078,0.00011504,2]
[347583405,1735925443121,-313.73406922,0.00011504,2]
[347583407,1735925443131,-500.0,0.00011778,2]
[347583408,1735925443140,-500.0,0.00012052,2]
[347583409,1735925443149,-498.96,0.000122,2]
[347583410,1735925443159,-15779.14125544,0.000122,2]
[347583411,1735925443168,-19888.34359474,0.000122,2]
[347583412,1735925443178,-19888.34359474,0.00012201,2]
[347583413,1735925443187,-19888.34359474,0.00012201,2]
[347583414,1735925443196,-19888.34359474,0.00012201,2]
[347583415,1735925443206,-6914.79029636,0.00012201,2]
[347583416,1735925443218,-552.43582965,0.00012201,2]
[347583417,1735925443229,-371.7000001,0.00012201,2]
[347583418,1735925443240,-12049.41746863,0.00012201,2]
[347583419,1735925443249,-19888.34359474,0.00012201,2]
[347583420,1735925443259,-459.71224953,0.00012205,2]
[347583421,1735925443268,-611.41763697,0.00012205,2]
[347583422,1735925443277,-459.71224953,0.0001221,2]
[347583423,1735925443287,-611.41763697,0.0001221,2]
[347583424,1735925443296,-444.09622201,0.0001221,2]
[347583425,1735925443306,-444.09622201,0.00012245,2]
[347583426,1735925443315,-11869.0,0.00012274,2]
[347583427,1735925443325,-150.0,0.00012274,2]
[347583428,1735925443335,-292.13127966,0.00012274,2]
[347583430,1735925443344,-150.0,0.00012274,2]
[347583432,1735925443354,-444.09622201,0.00012279,2]
[347583434,1735925443366,-150.0,0.00012283,2]
[347583436,1735925443376,-500.0,0.00012288,2]
[347583438,1735925443385,-5235.98610588,0.00012297,2]
[347583440,1735925443396,-164.68487442,0.00012299,2]
[347583441,1735925443405,-500.0,0.00012299,2]
[347583453,1735925443613,-221.48590639,0.00012299,2]
[347583454,1735925443624,-500.0,0.00012299,2]
[347583455,1735925443634,-483.11665369,0.00012299,2]
[347583456,1735925443645,-217.46,0.00012299,2]
[347583457,1735925443655,-500.0,0.00012299,2]
[347583458,1735925443665,-605.27574473,0.00012299,2]
[347583459,1735925443675,-455.07318617,0.00012299,2]
[347583460,1735925443685,-230.72061521,0.00012299,2]
[347583461,1735925443695,-878.0,0.00012299,2]
[347583462,1735925443705,-18559.44766876,0.00012299,2]
[347583463,1735925443715,-124611.23378769,0.00012299,2]
[347583475,1735925445793,-2000.0,0.00012205,2]
[347583476,1735925445805,-7677.96153851,0.00012205,2]
[347583477,1735925445814,-341823.71052749,0.00012299,2]
[347583478,1735925445825,-645152.75134854,0.00012299,2]
[347583479,1735925445996,-457.00711509,0.00012299,2]
[347583480,1735925446008,-262.05312674,0.00012299,2]
[347583481,1735925446071,-705.53562088,0.00012299,2]
[347583482,1735925446082,-79261.7926361,0.00012299,2]
[347583492,1735925614652,814.07,8.908e-05,2]
[347583497,1735925703508,157.0,8.908e-05,30]
[347583498,1735925703869,157.0,0.00010217,30]
[347583499,1735925704207,157.0,0.00011526,30]
[347583501,1735925959162,372.87593842,0.0002,120]
[347583502,1735926003826,158.0,8.908e-05,30]
[347583503,1735926004176,158.0,0.00010778,30]
[347583508,1735926304130,158.0,8.908e-05,30]
[347583509,1735926304482,158.0,0.00011526,30]
[347583510,1735926442556,166.66666668,0.00010041,2]
[347583515,1735926567256,773.36,8.219e-05,2]
[347583522,1735926603879,158.0,8.908e-05,30]
[347583532,1735926631989,-176.59,0.00010137,2]
[347583533,1735926631999,-650.11,0.00010137,2]
[347583534,1735926632008,-505.13,0.00010141,2]
[347583535,1735926632016,-502.76,0.00010142,2]
[347583536,1735926632025,-509.53,0.00010144,2]
[347583537,1735926632034,-495.33,0.00010147,2]
[347583538,1735926632043,-493.14,0.0001015,2]
[347583539,1735926632051,-493.2,0.00010155,2]
[347583540,1735926632061,-505.44,0.00010161,2]
[347583541,1735926632070,-494.17,0.0001017,2]
[347583542,1735926632079,-261.13,0.00010172,2]
[347583543,1735926632088,-509.86,0.00010181,2]
[347583544,1735926632097,-490.22,0.00010196,2]
[347583545,1735926632106,-166.66666666,0.00010204,2]
[347583546,1735926632115,-495.73,0.00010218,2]
[347583547,1735926632128,-490.4,0.00010247,2]
[347583548,1735926632137,-505.17,0.00010285,2]
[347583549,1735926632147,-1182.62,0.00010286,2]
[347583550,1735926632156,-250.0,0.00010289,2]
[347583551,1735926632165,-250.0,0.00010293,2]
[347583552,1735926632175,-268.02,0.000103,2]
[347583553,1735926632185,-508.83,0.00010337,2]
[347583554,1735926632196,-166.66666666,0.00010366,2]
[347583555,1735926632206,-495.53,0.00010408,2]
[347583556,1735926632215,-1000.0,0.00010411,2]
[347583557,1735926632225,-1500.0,0.00010466,2]
[347583558,1735926632235,-773.36,0.00010483,2]
[347583559,1735926632244,-495.11,0.00010504,2]
[347583560,1735926632253,-166.95,0.00010546,2]
[347583561,1735926632263,-493.71,0.00010608,2]
[347583562,1735926632272,-503.34,0.00010616,2]
[347583563,1735926632283,-496.14,0.00010627,2]
[347583564,1735926632292,-507.48,0.00010641,2]
[347583565,1735926632301,-494.45,0.00010661,2]
[347583566,1735926632310,-503.06,0.00010684,2]
[347583567,1735926632320,-508.18,0.00010684,2]
[347583568,1735926632329,-508.6,0.00010956,2]
[347583569,1735926632338,-497.83,0.00010956,2]
[347583570,1735926632347,-490.79,0.00010956,2]
[347583571,1735926632357,-493.6,0.00010956,2]
[347583572,1735926632366,-496.09,0.00010956,2]
[347583573,1735926632375,-497.72,0.00010956,2]
[347583574,1735926632385,-150.0,0.00010959,2]
[347583575,1735926632394,-243.85288363,0.00010968,2]
[347583576,1735926632404,-263.19402793,0.00010969,2]
[347583577,1735926632413,-263.19402793,0.0001097,2]
[347583578,1735926632423,-263.19402793,0.00010973,2]
[347583579,1735926632433,-263.19402793,0.00010974,2]
[347583580,1735926632443,-263.19402793,0.00010976,2]
[347583582,1735926632452,-263.19402793,0.00010978,2]
[347583584,1735926632462,-243.85288363,0.00010978,2]
[347583586,1735926632472,-243.85288363,0.0001098,2]
[347583588,1735926632481,-243.85288363,0.00010981,2]
[347583590,1735926632491,-243.85288363,0.00010984,2]
[347583592,1735926632500,-400.0,0.00010986,2]
[347583594,1735926632510,-243.85288363,0.00010994,2]
[347583596,1735926632519,-491.73,0.00011012,2]
[347583598,1735926632528,-150.0,0.00011047,2]
[347583600,1735926632537,-150.0,0.00011047,2]
[347583602,1735926632546,-498.83,0.00011068,2]
[347583604,1735926632555,-200.0,0.00011133,2]
[347583606,1735926632564,-10000.0,0.00011439,2]
[347583608,1735926632573,-2751.0,0.00011507,2]
[347583610,1735926632582,-437.61,0.00011534,2]
[347583612,1735926632591,-771.63,0.00011534,2]
[347583614,1735926632600,-437.61,0.00011534,2]
[347583616,1735926632609,-771.63,0.00011534,2]
[347583618,1735926632618,-437.61,0.00011534,2]
[347583620,1735926632627,-771.63,0.00011534,2]
[347583622,1735926632637,-437.61,0.00011534,2]
[347583624,1735926632647,-771.63,0.00011534,2]
[347583626,1735926632656,-437.61,0.00011534,2]
[347583628,1735926632666,-771.63,0.00011534,2]
[347583630,1735926632676,-874.73,0.00011534,2]
[347583632,1735926632687,-771.63,0.00011534,2]
[347583634,1735926632696,-771.63,0.00011534,2]
[347583636,1735926632705,-500.0,0.00011562,2]
[347583638,1735926632714,-268.02,0.00011588,2]
[347583640,1735926632724,-150.0,0.0001166,2]
[347583642,1735926632733,-925.21,0.00011671,2]
[347583644,1735926632742,-365.44,0.00011671,2]
[347583646,1735926632751,-1000.0,0.00011713,2]
[347583648,1735926632760,-295.287,0.0001178,2]
[347583650,1735926632771,-429.51484354,0.00011791,2]
[347583652,1735926632780,-330.5993,0.00011979,2]
[347583654,1735926632789,-17209.2015,0.00012,2]
[347583656,1735926632799,-180.0815,0.00012,2]
[347583659,1735926632812,-16111.29968995,0.00012,2]
[347583661,1735926632825,-12870.91418621,0.00012,2]
[347583663,1735926632837,-5004.98659038,0.00012,2]
[347583666,1735926632848,-11536.07194134,0.00012,2]
[347583668,1735926632859,-17170.5,0.00012,2]
[347583670,1735926632870,-2741.24740212,0.00012,2]
[347583672,1735926632879,-1000.0,0.00012007,2]
[347583674,1735926632888,-1282.32014487,0.00012054,2]
[347583676,1735926632900,-147.89885513,0.00012054,2]
[347583678,1735926632909,-144.90514487,0.00012079,2]
[347583682,1735926632940,-355.09485513,0.00012079,2]
[347583684,1735926632950,-298.12514487,0.00012079,2]
[347583687,1735926632961,-201.87485513,0.00012079,2]
[347583689,1735926632970,-143.30114487,0.00012079,2]
[347583691,1735926632982,-356.69885513,0.00012079,2]
[347583693,1735926632991,-500.0,0.00012079,2]
[347583695,1735926633001,-500.0,0.00012079,2]
[347583697,1735926633011,-500.0,0.00012079,2]
[347583699,1735926633020,-500.0,0.00012079,2]
[347583701,1735926633030,-500.0,0.00012079,2]
[347583703,1735926633039,-500.0,0.00012079,2]
[347583705,1735926633049,-500.0,0.00012079,2]
[347583707,1735926633058,-500.0,0.00012079,2]
[347583709,1735926633067,-500.0,0.00012079,2]
[347583711,1735926633078,-500.0,0.00012079,2]
[347583713,1735926633087,-109.56160759,0.00012079,2]
[347583715,1735926633099,-390.43839241,0.00012079,2]
[347583717,1735926633108,-500.0,0.00012079,2]
[347583719,1735926633117,-215.47146821,0.00012079,2]
[347583722,1735926633142,-347.45853179,0.00012079,2]
[347583724,1735926633151,-500.0,0.00012079,2]
[347583726,1735926633160,-500.0,0.00012079,2]
[347583728,1735926633170,-743.59,0.00012087,2]
[347583730,1735926633179,-309.67,0.00012087,2]
[347583732,1735926633189,-390.53912502,0.00012087,2]
[347583734,1735926633203,-109.46087498,0.00012087,2]
[347583737,1735926633214,-500.0,0.00012087,2]
[347583739,1735926633223,-572.87,0.00012087,2]
[347583741,1735926633234,-1100.0,0.00012088,2]
[347583743,1735926633245,-500.0,0.00012088,2]
[347583745,1735926633254,-353.166,0.000121,2]
[347583747,1735926633264,-6103.1518,0.000121,2]
[347583748,1735926633274,-1653.0029,0.000121,2]
[347583750,1735926633284,-791.9,0.00012146,2]
[347583752,1735926633294,-5000.0,0.0001217,2]
[347583754,1735926633305,-750.6948,0.0001217,2]
[347583756,1735926633315,-3000.0,0.0001218,2]
[347583758,1735926633325,-500.0,0.00012199,2]
[347583760,1735926633334,-170.24671018,0.00012199,2]
[347583763,1735926633344,-500.0,0.00012199,2]
[347583764,1735926633354,-500.0,0.00012199,2]
[347583766,1735926633363,-500.0,0.00012199,2]
[347583768,1735926633374,-500.0,0.00012199,2]
[347583771,1735926633385,-500.0,0.00012199,2]
[347583773,1735926633395,-500.0,0.00012199,2]
[347583775,1735926633404,-500.0,0.00012199,2]
[347583798,1735926633631,-500.0,0.00012199,2]
[347583800,1735926633641,-500.0,0.00012199,2]
[347583801,1735926633651,-500.0,0.00012199,2]
[347583802,1735926633661,-403.50815141,0.00012199,2]
[347583803,1735926633671,-500.0,0.00012199,2]
[347583804,1735926633683,-500.0,0.00012199,2]
[347583805,1735926633692,-500.0,0.00012199,2]
[347583806,1735926633702,-500.0,0.00012199,2]
[347583807,1735926633712,-4379.6962,0.00012199,2]
[347583808,1735926633722,-11202.7805,0.00012199,2]
[347583809,1735926633732,-3598.4165,0.000122,2]
[347583810,1735926633742,-500.0,0.000122,2]
[347583811,1735926633753,-500.0,0.000122,2]
[347583812,1735926633763,-500.0,0.000122,2]
[347583813,1735926633773,-500.0,0.000122,2]
[347583814,1735926633783,-858.54,0.000122,2]
[347583815,1735926633793,-437.30474004,0.000122,2]
[347583816,1735926633803,-500.0,0.000122,2]
[347583817,1735926633813,-500.0,0.000122,2]
[347583818,1735926633823,-500.0,0.000122,2]
[347583819,1735926633833,-156.87517108,0.000122,2]
[347583820,1735926633843,-364.68902082,0.000122,2]
[347583821,1735926633853,-3225.98717951,0.000122,2]
[347583822,1735926633862,-347.89125005,0.000122,2]
[347583823,1735926633873,-319.34822,0.000122,2]
[347583824,1735926633882,-156.87517103,0.00012207,2]
[347583825,1735926633892,-156.87517103,0.00012213,2]
[347583826,1735926633901,-3225.9871795,0.00012217,2]
[347583827,1735926633911,-347.89125004,0.00012217,2]
[347583828,1735926633921,-319.34822,0.00012217,2]
[347583829,1735926633934,-156.87517103,0.0001222,2]
[347583830,1735926633944,-156.87517103,0.00012226,2]
[347583831,1735926633953,-156.87517103,0.00012233,2]
[347583832,1735926633963,-3225.9871795,0.00012233,2]
[347583833,1735926633973,-347.89125004,0.00012233,2]
[347583834,1735926633983,-319.34822,0.00012233,2]
[347583835,1735926633992,-437.30474004,0.00012267,2]
[347583836,1735926634002,-291.55807555,0.00012269,2]
[347583837,1735926634011,-572.52,0.00012269,2]
[347583838,1735926634021,-500.0,0.00012269,2]
[347583839,1735926634031,-500.0,0.00012269,2]
[347583840,1735926634040,-500.0,0.00012269,2]
[347583841,1735926634049,-500.0,0.00012269,2]
[347583842,1735926634058,-500.0,0.00012269,2]
[347583843,1735926634068,-500.0,0.00012269,2]
[347583844,1735926634077,-196.16916241,0.00012269,2]
[347583845,1735926634087,-500.0,0.00012269,2]
[347583846,1735926634096,-500.0,0.00012269,2]
[347583847,1735926634106,-500.0,0.00012269,2]
[347583848,1735926634115,-500.0,0.00012269,2]
[347583849,1735926634124,-820.56,0.00012269,2]
[347583850,1735926634134,-500.0,0.00012269,2]
[347583851,1735926634143,-33131.56383,0.0001227,2]
[347583852,1735926634156,-343.10841754,0.0001227,2]
[347583853,1735926634175,-524.72012969,0.0001227,2]
[347583854,1735926637828,-845.88342142,0.0001227,2]
[347583855,1735926637840,-525.45,0.0001227,2]
[347583856,1735926637926,-2455.22011206,0.0001227,2]
[347583857,1735926637941,-6186.6643314,0.0001227,2]
[347583858,1735926637954,-826.50000013,0.0001227,2]
[347583859,1735926637965,-706.10326874,0.0001227,2]
[347583860,1735926638026,-2352.79171314,0.0001227,2]
[347583861,1735926638037,-33314.63051927,0.0001227,2]
[347583862,1735926638048,-4822.6,0.0001227,2]
[347583863,1735926638059,-75580.13223032,0.0001227,2]
[347583864,1735926638071,-178384.63202629,0.0001227,2]
[347583865,1735926638081,-500.0,0.00012273,2]
[347583866,1735926638090,-501.40922122,0.00012273,2]
[347583867,1735926638099,-261.4084419,0.00012273,2]
[347583868,1735926638109,-500.0,0.00012273,2]
[347583869,1735926638118,-590.27053556,0.00012273,2]
[347583870,1735926638128,-251.57058194,0.00012274,2]
[347583871,1735926638137,-14866.7036712,0.0001228,5]
[347583872,1735926638146,-584.83861167,0.00012296,2]
[347583873,1735926638155,-500.0,0.00012296,2]
[347583874,1735926638164,-500.0,0.00012296,2]
[347583875,1735926638173,-500.0,0.00012296,2]
[347583876,1735926638184,-500.0,0.00012296,2]
[347583877,1735926638194,-500.0,0.00012296,2]
[347583878,1735926638207,-500.0,0.00012296,2]
[347583879,1735926638217,-500.0,0.00012296,2]
[347583880,1735926638227,-9618.9562951,0.00012297,2]
[347583881,1735926638237,-382.352356,0.00012298,2]
[347583882,1735926638246,-570.613371,0.00012298,2]
[347583883,1735926638256,-636.83,0.00012298,2]
[347583884,1735926638265,-500.0,0.00012298,2]
[347583885,1735926638275,-500.0,0.00012298,2]
[347583886,1735926638285,-500.0,0.00012298,2]
[347583887,1735926638294,-500.0,0.00012298,2]
[347583888,1735926638304,-500.0,0.00012298,2]
[347583889,1735926638313,-500.0,0.00012298,2]
[347583890,1735926638323,-500.0,0.00012298,2]
[347583891,1735926638332,-500.0,0.00012298,2]
[347583892,1735926638341,-500.0,0.00012298,2]
[347583893,1735926638352,-500.0,0.00012298,2]
[347583894,1735926638363,-500.0,0.00012298,2]
[347583895,1735926638374,-500.0,0.00012298,2]
[347583896,1735926638384,-500.0,0.00012298,2]
[347583897,1735926638393,-509.92,0.00012298,2]
[347583898,1735926638403,-558.07,0.00012298,2]
[347583899,1735926638412,-511.9463246,0.00012298,2]
[347583900,1735926638423,-500.0,0.00012298,2]
[347583901,1735926638433,-500.0,0.00012298,2]
[347583902,1735926638443,-500.0,0.00012298,2]
[347583903,1735926638452,-500.0,0.00012298,2]
[347583904,1735926638462,-500.0,0.00012298,2]
[347583905,1735926638472,-500.0,0.00012298,2]
[347583906,1735926638481,-500.0,0.00012298,2]
[347583907,1735926638491,-500.0,0.00012298,2]
[347583908,1735926638501,-1135.21,0.00012298,2]
[347583909,1735926638510,-500.0,0.00012298,2]
[347583910,1735926638519,-278.2871034,0.00012298,2]
[347583911,1735926638529,-500.0,0.00012298,2]
[347583912,1735926638539,-500.0,0.00012298,2]
[347583913,1735926638548,-500.0,0.00012298,2]
[347583914,1735926638557,-688.87,0.00012298,2]
[347583915,1735926638567,-233.1,0.00012298,2]
[347583916,1735926638577,-500.0,0.00012298,2]
[347583917,1735926638589,-218.26682548,0.00012298,2]
[347583918,1735926638599,-500.0,0.00012299,2]
[347583919,1735926638609,-818.07,0.00012299,2]
[347583920,1735926638626,-1585.12206531,0.00012299,3]
[347583921,1735926638636,-200.0,0.00012299,2]
[347583922,1735926638646,-238.52,0.00012299,2]
[347583923,1735926638655,-512.16,0.00012299,2]
[347583924,1735926638665,-693.0,0.00012299,2]
[347583925,1735926638674,-9279.72383438,0.00012299,2]
[347583926,1735926638684,-175717.69175252,0.00012299,2]
[347583927,1735926638884,-10059.90460733,0.00012299,2]
[347583928,1735926638897,-609606.39369497,0.00012299,2]
[347583929,1735926638934,-45716.0,0.00012299,2]
[347583930,1735926638945,-625.02743056,0.00012299,2]
[347583931,1735926638957,-1003.5,0.00012299,2]
[347583932,1735926639990,-1431.9734557,0.00012299,2]
[347583933,1735926640002,-3627.86550497,0.00012299,2]
[347583934,1735926640014,-4932.91611465,0.00012299,2]
[347583935,1735926640090,-3003.0,0.00012299,2]
[347583936,1735926640102,-327.635,0.00012299,2]
[347583937,1735926640112,-1962.675,0.00012299,2]
[347583938,1735926640196,-287.3168005,0.00012299,2]
[347583939,1735926640210,-537.925,0.00012299,2]
[347583940,1735926640221,-326.25499999,0.00012299,2]
[347583941,1735926640298,-10049.0,0.00012299,2]
[347583942,1735926640320,-8336.40509996,0.00012299,2]
[347583945,1735926643009,-1982.18802412,0.00012233,2]
[347583946,1735926643019,-672.0,0.00012299,2]
[347583949,1735926643029,-1952.76197588,0.00012299,2]
[347583952,1735926643181,-1089.0425383,0.00012299,2]
[347583953,1735926643193,-1395.71527919,0.00012299,2]
[347583954,1735926643208,-1170.0,0.00012299,2]
[347583955,1735926643412,-3313.2047406,0.00012299,2]
[347583956,1735926643425,-3584.80000002,0.00012299,2]
[347583963,1735926645904,-35820.9372795,0.00012299,2]
[347583967,1735926645932,-6991.20000002,0.00012299,2]
[347583968,1735926645943,-19634.4,0.00012299,2]
[347583969,1735926645954,-18831.5365359,0.00012299,2]
[347583970,1735926645980,-385.032,0.00012299,2]
[347583971,1735926645992,-212.968,0.00012299,2]
[347583972,1735926646001,-350.96784279,0.00012299,2]
[347583973,1735926646092,-316213.58394599,0.00012299,2]
[347583974,1735926646105,-256.48,0.00012299,2]
[347583975,1735926646118,-7938.37519832,0.00012299,2]
[347583976,1735926646145,-5332.0,0.00012299,2]
[347583977,1735926646171,-350.0,0.00012299,2]
[347583978,1735926646185,-118676.3799999,0.00012299,2]
[347584001,1735926960518,17839.9036635,0.0002,120]
[347584002,1735927300211,-1000.0,0.00010458,2]
[347584003,1735927463337,164.72,0.00010452,2]
[347584004,1735927614377,356.27,0.00010137,2]
[347584006,1735927636168,250.0,0.00010458,2]
[347584007,1735927766135,-250.0,0.00010467,2]
[347584008,1735927766158,-587.31,0.00010504,2]
[347584009,1735927766179,-1856.21,0.00010511,2]
[347584010,1735927766202,-150.0,0.00010528,2]
[347584011,1735927766225,-150.0,0.00010591,2]
[347584019,1735927810480,150.0,9.762e-05,2]